{"text_format":"1","workbook":"xlsx","n_sheets":1,"sheets":["Átadás 7. VGY"],"not_rendered":{"charts":0,"images":0,"macros":0,"external_links":0,"defined_names":2,"comments":0,"pivot_tables":0},"unopened":[],"bounds":{"document_bytes":16777216,"sheet_cells":100000,"rows_first":2000,"rows_last":500,"rows_between":2000,"halvings":0,"cell_chars":16384,"cell_head_chars":4096},"cells_cut":0,"cells_raw":0,"read":"whole","date_system":"1900"}

{"sheet":"Átadás 7. VGY","index":0,"n_rows":49,"n_cols":35,"rows_kept":49,"cut":false,"hidden":false,"merged":[]}
["Utcanév","Szakaszhatárok","  kcs 50/75                 ÜPE     hossz","  kcs 60                 ac     hossz","40                pvc","50              pvc","kcs hossz                       (fm)            50     beton","50          ac","60               beton","60                        pvc"," 60            ac","kcs hossz                       (fm)           100  ROCLA","víznyelő bekötővez. száma","víznyelő bekötővez. 20 pvc hossz","hbcs száma","hbcs 20 pvc hossz","hbcs 30 pvc hossz","hbcs 40  pvc    hossz   ","20         pvc","30             pvc","40                   KPE","víznyelő akna 30x30","víznyelő akna hossz","tetőlefolyó bekötővez száma","tetőlefolyó bekötővez 20pvc hossz","tisztító akna    hossz","tisztító akna száma","Mérleg szerinti nettó érték           Ft","Nettó érték           ","Áfa","Bruttó érték","Elszámolt értékcsökkenés","Értékcsökkenéssel számított érték","Műszaki átadás-átvétel","Műszaki átadás jegyző-könyv sorszáma"]
[null,null,"m","m","m","m","m","m","m","m","m","m","db","m","db","m","m","m","m ",null," ","db","m","db","m","m","db",null,"Ft","Ft","Ft","Ft","Ft"]
[]
["II. Fény utca","Kisrókus u. - 1 aknaköz",8.6999999999999993,null,null,null,null,null,null,null,null,null,2,8,null,null,null,null,null,null,null,2,1.4,null,null,2.75,1,{"$f":"AE4*0.8","v":464190.4},435178,145060,580238,167494,412746,"2001-08-16","118A/2011M"]
["II. Fény utca","Kisrókus u. - 5 aknaköz",null,131.5,null,null,null,null,null,null,null,null,null,null,6,30.1,8.8000000000000007,7.2,18.7,null,null,null,null,3,26.5,14.59,5,{"$f":"AE5*0.8","v":7016209.6000000006},6577697,2192565,8770262,2531598,6238662,"2001-08-16","118A/2011M"]
[null,null,null,null,null,null,null,null,null,null,null,null,null,null,null,null,null,null,null,null,null,null,null,null,null,null,null,{"$f":"AE6*0.8","v":0}]
[null,null,null,null,null,null,null,null,null,null,null,null,null,null,null,null,null,null,null,null,null,null,null,null,null,null,null,{"$f":"AE7*0.8","v":0}]
[null,null,null,null,null,null,null,null,null,null,null,null,null,null,null,null,null,null,null,null,null,null,null,null,null,null,null,{"$f":"AE8*0.8","v":0}]
[null,null,null,null,null,null,null,null,null,null,null,null,null,null,null,null,null,null,null,null,null,null,null,null,null,null,null,0]
[null,null,null,null,null,null,null,null,null,null,null,null,null,null,null,null,null,null,null,null,null,null,null,null,null,null,null,0]
[null,"Összesen:",8.6999999999999993,{"$f":"SUM(D4:D10)","v":131.5},{"$f":"SUM(E4:E10)","v":0},0,0,0,0,0,0,0,2,8,6,30.1,8.8000000000000007,7.2,18.7,0,0,2,1.4,3,26.5,17.34,6,{"$f":"SUM(AB4:AB10)","v":7480400.0000000009},7012875,2337625,9350500,2699092,6651408]
[null,null,{"$f":"SUM(C4:C11)","v":17.399999999999999},null,null,null,null,null,null,null,null,null,null,null,null,null,null,null,null,null,null,null,null,null,null,null,null,0]
[null,null,null,null,null,null,null,null,null,null,null,null,null,null,null,null,null,null,null,null,null,null,null,null,null,null,null,0]
[null,null,null,null,null,null,null,null,null,null,null,null,null,null,null,null,null,null,null,null,null,null,null,null,null,null,null,0]
[null,null,null,null,null,null,null,null,null,null,null,null,null,null,null,null,null,null,null,null,null,null,null,null,null,null,null,0]
["Budapest, 2011. október",null,null,null,null,null,null,null,null,null,null,null,null,null,null,null,null,null,null,null,null,null,null,null,null,null,null,0,null,null,null,null,"……………….."]
[null,null,null,null,null,null,null,null,null,null,null,null,null,null,null,null,null,null,null,null,null,null,null,null,null,null,null,0,null,null,null,null,"Dr. Láng Zsolt "]
[null,null,null,null,null,null,null,null,null,null,null,null,null,null,null,null,null,null,null,null,null,null,null,null,null,null,null,null,null,null,null,null,"polgármester"]
[]
[]
[]
[null,null,null,null,null,null,null,null,null,null,null,null,null,null,null,null,null,null,null,null,null,null,null,null,null,null,null,{"$f":"AE22*0.8","v":0}]
[null,null,null,null,null,null,null,null,null,null,null,null,null,null,null,null,null,null,null,null,null,null,null,null,null,null,null,0]
[null,null,null,null,null,null,null,null,null,null,null,null,null,null,null,null,null,null,null,null,null,null,null,null,null,null,null,0]
[null,null,null,null,null,null,null,null,null,null,null,null,null,null,null,null,null,null,null,null,null,null,null,null,null,null,null,0]
[null,null,null,null,null,null,null,null,null,null,null,null,null,null,null,null,null,null,null,null,null,null,null,null,null,null,null,0]
[null,null,null,null,null,null,null,null,null,null,null,null,null,null,null,null,null,null,null,null,null,null,null,null,null,null,null,0]
[null,null,null,null,null,null,null,null,null,null,null,null,null,null,null,null,null,null,null,null,null,null,null,null,null,null,null,0]
[null,null,null,null,null,null,null,null,null,null,null,null,null,null,null,null,null,null,null,null,null,null,null,null,null,null,null,0]
[null,null,null,null,null,null,null,null,null,null,null,null,null,null,null,null,null,null,null,null,null,null,null,null,null,null,null,0]
[null,null,null,null,null,null,null,null,null,null,null,null,null,null,null,null,null,null,null,null,null,null,null,null,null,null,null,0]
[null,null,null,null,null,null,null,null,null,null,null,null,null,null,null,null,null,null,null,null,null,null,null,null,null,null,null,0]
[null,null,null,null,null,null,null,null,null,null,null,null,null,null,null,null,null,null,null,null,null,null,null,null,null,null,null,0]
[null,null,null,null,null,null,null,null,null,null,null,null,null,null,null,null,null,null,null,null,null,null,null,null,null,null,null,0]
[null,null,null,null,null,null,null,null,null,null,null,null,null,null,null,null,null,null,null,null,null,null,null,null,null,null,null,0]
[null,null,null,null,null,null,null,null,null,null,null,null,null,null,null,null,null,null,null,null,null,null,null,null,null,null,null,0]
[null,null,null,null,null,null,null,null,null,null,null,null,null,null,null,null,null,null,null,null,null,null,null,null,null,null,null,0]
[null,null,null,null,null,null,null,null,null,null,null,null,null,null,null,null,null,null,null,null,null,null,null,null,null,null,null,0]
[null,null,null,null,null,null,null,null,null,null,null,null,null,null,null,null,null,null,null,null,null,null,null,null,null,null,null,0]
[null,null,null,null,null,null,null,null,null,null,null,null,null,null,null,null,null,null,null,null,null,null,null,null,null,null,null,0]
[null,null,null,null,null,null,null,null,null,null,null,null,null,null,null,null,null,null,null,null,null,null,null,null,null,null,null,0]
[null,null,null,null,null,null,null,null,null,null,null,null,null,null,null,null,null,null,null,null,null,null,null,null,null,null,null,0]
[null,null,null,null,null,null,null,null,null,null,null,null,null,null,null,null,null,null,null,null,null,null,null,null,null,null,null,0]
[null,null,null,null,null,null,null,null,null,null,null,null,null,null,null,null,null,null,null,null,null,null,null,null,null,null,null,0]
[null,null,null,null,null,null,null,null,null,null,null,null,null,null,null,null,null,null,null,null,null,null,null,null,null,null,null,0]
[null,null,null,null,null,null,null,null,null,null,null,null,null,null,null,null,null,null,null,null,null,null,null,null,null,null,null,0]
[null,null,null,null,null,null,null,null,null,null,null,null,null,null,null,null,null,null,null,null,null,null,null,null,null,null,null,0]
[null,null,null,null,null,null,null,null,null,null,null,null,null,null,null,null,null,null,null,null,null,null,null,null,null,null,null,0]
[null,null,null,null,null,null,null,null,null,null,null,null,null,null,null,null,null,null,null,null,null,null,null,null,null,null,null,0]